bitfinex/quotes_SOLUSD_20240729
["timestamp","ask_amount","ask_price","bid_price","bid_amount"]
[1722289902432,12.85,183.55,183.53,19.6836]
[1722289902630,12.85,183.54,183.53,6.0619]
[1722289904527,5.4481,183.55,183.53,6.0619]
[1722289904849,12.85,183.54,183.53,6.0619]
[1722289906229,12.85,183.55,183.53,6.0619]
[1722289906457,13.616,183.61,183.53,6.0619]
[1722289906774,12.85,183.55,183.53,6.0619]
[1722289906928,12.85,183.54,183.52,16.0337]
[1722289907635,12.85,183.55,183.52,16.0337]
[1722289908235,18.2982,183.55,183.52,16.0337]
[1722289908931,12.85,183.54,183.52,16.0337]
[1722289909258,5.4482,183.55,183.52,16.0337]
[1722289909436,12.85,183.54,183.52,16.0337]
[1722289910237,5.4478,183.56,183.52,16.0337]
[1722289910440,12.85,183.55,183.52,16.0337]
[1722289911162,5.4475,183.57,183.52,16.0337]
[1722289911370,20.0,183.6,183.53,13.6213]
[1722289911571,12.85,183.56,183.52,21.4826]
[1722289911949,13.6143,183.63,183.53,5.4485]
[1722289912255,18.2978,183.56,183.52,16.0337]
[1722289912461,12.85,183.55,183.52,16.0337]
[1722289913052,5.4478,183.56,183.52,16.0337]
[1722289913260,12.85,183.55,183.52,16.0337]
[1722289913648,18.2983,183.55,183.52,16.0337]
[1722289914371,5.447,183.59,183.53,5.4485]
[1722289914575,12.85,183.56,183.52,16.0337]
[1722289914967,18.2978,183.56,183.52,16.0337]
[1722289916183,5.4478,183.56,183.52,16.0337]
[1722289916348,18.2981,183.55,183.5,13.6238]
[1722289917455,5.4481,183.55,183.5,13.6238]
[1722289917762,18.2981,183.55,183.5,13.6238]
[1722289918777,5.4481,183.55,183.51,20.0]
[1722289918986,18.2978,183.56,183.51,20.0]
[1722289919166,5.4478,183.56,183.51,5.4492]
[1722289919491,18.2978,183.56,183.51,5.4492]
[1722289920172,18.2978,183.56,183.5,13.6238]
[1722289920380,13.6157,183.62,183.5,13.6238]
[1722289920381,5.4482,183.55,183.5,13.6238]
[1722289920683,18.2982,183.55,183.5,13.6238]
[1722289920888,5.4485,183.54,183.49,26.1029]
[1722289921374,18.2985,183.54,183.49,6.1029]
[1722289921579,18.299,183.52,183.49,6.1029]
[1722289921956,12.85,183.51,183.46,35.2413]
[1722289923487,12.85,183.51,183.47,5.4504]
[1722289923973,12.85,183.51,183.46,35.2415]
[1722289924569,12.85,183.51,183.47,5.4502]
[1722289925074,12.85,183.51,183.48,5.4501]
[1722289925474,12.85,183.49,183.4,20.0]
[1722289925656,12.85,183.45,183.39,58.77394209]
[1722289925982,12.85,183.45,183.4,19.0834]
[1722289926675,12.85,183.45,183.41,5.4521]
[1722289934499,18.3008,183.46,183.41,5.4521]
[1722289934787,5.451,183.45,183.4,39.0837]
[1722289936084,5.4518,183.43,183.39,58.77394209]
[1722289936291,18.3016,183.44,183.39,58.77394209]
[1722289936593,12.85,183.43,183.39,58.77394209]
[1722289937586,18.3017,183.43,183.39,58.77394209]
[1722289938082,12.85,183.43,183.39,64.22674209]
[1722289938675,12.85,183.43,183.39,58.77394209]
[1722289938871,5.4513,183.44,183.39,58.77394209]
[1722289939091,18.3013,183.44,183.39,58.77394209]
[1722289940491,5.4513,183.44,183.39,58.77394209]
[1722289940686,5.4525,183.4,183.39,58.77394209]
[1722289940884,18.3025,183.41,183.39,58.77394209]
[1722289941194,12.85,183.42,183.39,58.77394209]
[1722289941368,18.3017,183.43,183.39,58.77394209]
[1722289941695,12.85,183.4,183.39,58.77394209]
[1722289942593,18.3022,183.41,183.39,58.77394209]
[1722289942980,12.85,183.41,183.39,58.77394209]
[1722289945098,18.3019,183.42,183.39,58.77394209]
[1722289945999,5.4519,183.42,183.39,58.77394209]
[1722289946597,18.3019,183.42,183.39,58.77394209]
[1722289947894,12.85,183.42,183.39,58.77394209]
[1722289948978,18.302,183.42,183.39,58.77394209]
[1722289949597,5.4498,183.49,183.44,5.4512]
[1722289949796,12.85,183.48,183.41,12.85]
[1722289949994,12.85,183.48,183.42,45.0]
[1722289950181,12.85,183.48,183.44,5.4513]
[1722289950581,12.85,183.46,183.41,5.4522]
[1722289950782,18.3011,183.45,183.4,19.7409]
[1722289950994,12.85,183.44,183.4,19.7409]
[1722289951178,65.0239,183.51,183.39,58.77394209]
[1722289951179,12.85,183.42,183.39,58.77394209]
[1722289951379,5.4513,183.45,183.39,58.77394209]
[1722289951599,12.85,183.44,183.39,58.77394209]
[1722289952202,18.3018,183.43,183.39,58.77394209]
[1722289952390,12.85,183.43,183.39,58.77394209]
[1722289952591,12.85,183.43,183.39,64.22674209]
[1722289953278,12.85,183.44,183.4,5.4525]
[1722289953604,12.85,183.44,183.41,5.4521]
[1722289954484,12.85,183.44,183.4,5.4525]
[1722289959718,12.85,183.44,183.4,25.4525]
[1722289959940,12.85,183.44,183.4,5.4525]
[1722289960215,12.85,183.44,183.4,25.4525]
[1722289960396,12.85,183.44,183.4,5.4525]
[1722289960917,12.85,183.44,183.39,117.85884209]
[1722289960918,5.4513,183.44,183.39,117.85884209]
[1722289961224,18.3013,183.44,183.39,97.85884209]
[1722289962787,5.4513,183.44,183.39,97.85884209]
[1722289962992,18.3016,183.43,183.39,72.40604209]
[1722289963415,18.3016,183.43,183.39,92.40604209]
[1722289963817,18.3016,183.43,183.39,72.40604209]
[1722289964121,18.3016,183.43,183.39,92.40604209]
[1722289964289,12.85,183.43,183.39,72.40604209]
[1722289965398,5.4514,183.44,183.39,72.40604209]
[1722289965801,12.85,183.44,183.39,72.40604209]
[1722289966401,12.85,183.44,183.41,5.4521]
[1722289966600,12.85,183.44,183.39,72.40604209]
[1722289967823,12.85,183.44,183.4,5.4525]
[1722289970218,51.4,183.51,183.39,92.40604209]
[1722289970428,12.85,183.44,183.39,72.40604209]
[1722289970623,51.4,183.51,183.39,72.40604209]
[1722289970825,12.85,183.45,183.39,72.40604209]
[1722289971039,12.85,183.45,183.4,20.0]
[1722289971205,12.85,183.45,183.41,5.4522]
[1722289974822,5.4499,183.49,183.44,5.4513]
[1722289975137,18.3005,183.47,183.42,36.4496]
[1722289975432,12.85,183.46,183.42,36.4496]
[1722289975809,12.85,183.46,183.43,5.4513]
[1722289976010,12.85,183.46,183.42,36.4496]
[1722289976428,12.85,183.46,183.42,41.9015]
[1722289977330,5.4505,183.47,183.42,41.9015]
[1722289977524,12.85,183.45,183.42,41.9015]
[1722289979147,12.85,183.44,183.42,36.4496]
[1722289980845,12.85,183.44,183.39,78.77394209]
[1722289981020,12.85,183.44,183.39,58.77394209]
[1722289981521,12.85,183.44,183.4,5.4522]
[1722289982419,5.451,183.46,183.41,5.4522]
[1722289982730,12.85,183.44,183.41,5.4522]
[1722289983120,5.451,183.46,183.41,5.4522]
[1722289983330,12.85,183.44,183.41,5.4522]
[1722289983548,12.85,183.45,183.41,5.4522]
[1722289992739,12.85,183.45,183.42,5.4519]
[1722289995650,12.85,183.45,183.41,5.4522]
[1722289995851,12.85,183.45,183.4,13.6306]
[1722289996554,12.85,183.45,183.41,5.4521]
[1722289996742,12.85,183.45,183.42,5.4519]
[1722289996938,12.85,183.45,183.41,5.4522]
[1722290000150,12.85,183.45,183.42,5.4518]
[1722290005971,12.85,183.45,183.43,5.4513]
[1722290006159,12.85,183.46,183.43,5.4513]
[1722290006455,18.3007,183.46,183.41,5.4522]
[1722290006639,12.85,183.46,183.42,5.4517]
[1722290007239,12.85,183.46,183.43,5.4515]
[1722290008543,12.85,183.46,183.42,5.4519]
[1722290009358,18.3006,183.47,183.43,20.0]
[1722290009555,12.85,183.46,183.43,25.4516]
[1722290010457,12.85,183.45,183.43,20.0]
[1722290010658,5.4513,183.44,183.4,13.6306]
[1722290011160,5.4513,183.44,183.4,33.6306]
[1722290011354,5.4513,183.44,183.4,13.6306]
[1722290011556,5.4513,183.44,183.4,33.6306]
[1722290011770,5.4513,183.44,183.4,13.6306]
[1722290011953,5.4513,183.44,183.4,33.6306]
[1722290012150,5.4513,183.44,183.4,13.6306]
[1722290012452,18.3013,183.44,183.4,13.6306]
[1722290012658,18.3013,183.44,183.4,33.6306]
[1722290012965,18.3013,183.44,183.4,13.6306]
[1722290013369,12.85,183.44,183.4,19.083]
[1722290013662,12.85,183.45,183.4,39.083]
[1722290013852,12.85,183.45,183.41,5.4521]
[1722290014049,18.3011,183.45,183.4,39.0831]
[1722290014959,12.85,183.45,183.41,5.4522]
[1722290015343,12.85,183.45,183.42,20.0]
[1722290016061,12.85,183.45,183.41,25.4522]
[1722290017867,5.4508,183.46,183.41,25.4522]
[1722290018072,12.85,183.45,183.41,25.4522]
[1722290020864,5.4508,183.46,183.42,20.0]
[1722290021057,12.85,183.45,183.42,20.0]
[1722290021258,12.85,183.45,183.41,25.4522]
[1722290021443,12.85,183.45,183.42,20.0]
[1722290021848,12.85,183.45,183.41,25.4522]
[1722290022071,12.85,183.45,183.42,20.0]
[1722290022244,12.85,183.45,183.41,25.4522]
[1722290022775,12.85,183.45,183.42,20.0]
[1722290023274,18.301,183.45,183.41,20.0]
[1722290023773,18.301,183.45,183.42,20.0]
[1722290025272,18.301,183.45,183.41,20.0]
[1722290025481,18.301,183.45,183.42,20.0]
[1722290025854,18.301,183.45,183.41,20.0]
[1722290026167,18.301,183.45,183.42,20.0]
[1722290026654,5.451,183.45,183.42,20.0]
[1722290027765,13.6246,183.5,183.42,20.0]
[1722290027954,5.4513,183.44,183.42,20.0]
[1722290030459,5.4509,183.46,183.42,20.0]
[1722290030662,12.85,183.45,183.42,20.0]
[1722290031155,18.3011,183.45,183.41,20.0]
[1722290031350,5.4507,183.47,183.42,20.0]
[1722290031574,12.85,183.45,183.43,20.0]
[1722290032575,5.451,183.46,183.43,20.0]
[1722290032786,18.3011,183.45,183.43,20.0]
[1722290033860,5.4511,183.45,183.43,20.0]
[1722290035374,18.3007,183.46,183.43,20.0]
[1722290035671,5.4507,183.46,183.45,20.0]
[1722290036075,5.4504,183.47,183.45,20.0]
[1722290039978,12.85,183.48,183.45,41.7989]
[1722290040178,5.4501,183.48,183.47,20.0]
[1722290040391,5.4499,183.49,183.47,20.0]
[1722290040584,12.85,183.48,183.47,20.0]
[1722290041069,5.4499,183.49,183.47,20.0]
[1722290041274,12.85,183.48,183.47,20.0]
[1722290041473,5.4499,183.49,183.47,20.0]
[1722290041660,18.2999,183.49,183.47,20.0]
[1722290042089,5.4501,183.48,183.47,20.0]
[1722290043289,18.3001,183.48,183.47,20.0]
[1722290043592,5.4501,183.48,183.47,20.0]
[1722290043760,18.3001,183.48,183.47,20.0]
[1722290044093,5.4501,183.48,183.47,20.0]
[1722290044293,18.3001,183.48,183.47,20.0]
[1722290045901,5.4501,183.48,183.47,20.0]
[1722290046079,5.4501,183.48,183.47,40.0]
[1722290046482,12.85,183.49,183.47,20.0]
[1722290047084,18.2999,183.49,183.47,20.0]
[1722290048565,5.4501,183.48,183.47,20.0]
[1722290049173,13.6185,183.58,183.49,20.0]
[1722290049410,12.85,183.51,183.49,20.0]
[1722290050176,13.6185,183.58,183.49,20.0]
[1722290050387,13.6185,183.58,183.51,20.0]
[1722290050388,5.4489,183.52,183.51,20.0]
[1722290050591,18.2989,183.52,183.51,20.0]
[1722290050784,18.2989,183.52,183.48,20.0]
[1722290050785,5.4498,183.49,183.48,20.0]
[1722290051089,5.4495,183.51,183.48,20.0]
[1722290051294,5.4489,183.53,183.51,20.0]
[1722290051469,5.4489,183.52,183.51,20.0]
[1722290051669,18.2989,183.52,183.51,20.0]
[1722290051876,5.4489,183.52,183.51,20.0]
[1722290052175,18.2989,183.52,183.51,20.0]
[1722290052900,5.4489,183.52,183.51,20.0]
[1722290053071,18.2989,183.52,183.51,20.0]
[1722290054187,18.2989,183.52,183.49,20.0]
[1722290054497,18.2989,183.52,183.51,20.0]
[1722290055682,12.85,183.52,183.46,40.0]
[1722290056009,12.85,183.5,183.46,40.0]
[1722290056294,12.85,183.5,183.48,20.0]
[1722290056476,13.6203,183.55,183.48,40.0]
[1722290056677,12.85,183.5,183.48,20.0]
[1722290057101,18.2993,183.51,183.48,20.0]
[1722290057993,5.4493,183.51,183.48,20.0]
[1722290059197,18.2989,183.52,183.48,20.0]
[1722290059399,5.4489,183.52,183.51,20.0]
[1722290059592,18.2989,183.52,183.51,20.0]
[1722290061202,5.4487,183.53,183.51,20.0]
[1722290061423,18.2987,183.53,183.51,20.0]
[1722290061706,13.6181,183.58,183.53,5.4486]
[1722290061707,5.4474,183.58,183.53,5.4486]
[1722290061908,12.85,183.55,183.52,20.0]
[1722290062201,5.4484,183.54,183.51,20.0]
[1722290063291,18.2984,183.54,183.51,20.0]
[1722290067312,0.9490861,183.62,183.55,20.0]
[1722290067481,0.9490861,183.62,183.52,20.0]
[1722290067482,12.85,183.57,183.53,20.0]
[1722290067885,12.85,183.56,183.53,20.0]
[1722290068183,12.85,183.57,183.53,20.0]
[1722290068380,12.85,183.56,183.55,20.0]
[1722290068815,5.4475,183.57,183.55,20.0]
[1722290068998,5.4478,183.56,183.55,20.0]
[1722290069504,12.85,183.56,183.55,20.0]
[1722290070487,12.85,183.56,183.53,20.0]
[1722290070687,12.85,183.55,183.53,20.0]
[1722290070882,12.85,183.54,183.51,41.4188]
[1722290071592,12.85,183.54,183.52,20.0]
[1722290071899,12.85,183.55,183.52,20.0]
[1722290072099,51.4,183.6,183.52,20.0]
[1722290072407,12.85,183.53,183.49,40.0]
[1722290072798,12.85,183.53,183.51,20.0]
[1722290073301,5.4486,183.54,183.51,20.0]
[1722290073620,13.6174,183.59,183.51,20.0]
[1722290073912,12.85,183.54,183.51,20.0]
[1722290074282,12.85,183.54,183.49,20.0]
[1722290074283,13.6174,183.59,183.49,40.0]
[1722290074516,12.85,183.54,183.49,40.0]
[1722290074697,12.85,183.53,183.49,40.0]
[1722290075309,5.4491,183.52,183.49,40.0]
[1722290075610,13.6174,183.59,183.49,40.0]
[1722290075611,12.85,183.53,183.49,40.0]
[1722290076024,13.6174,183.59,183.49,40.0]
[1722290076314,20.0,183.58,183.49,40.0]
[1722290076507,12.85,183.53,183.49,40.0]
[1722290076814,5.449,183.52,183.49,40.0]
[1722290077706,5.4484,183.54,183.49,55.1755]
[1722290077911,5.4484,183.54,183.51,40.0]
[1722290078297,12.85,183.54,183.51,40.0]
[1722290078508,12.85,183.54,183.51,20.0]
[1722290079017,18.2984,183.54,183.49,74.2499]
[1722290079397,18.2984,183.54,183.51,20.0]
[1722290080114,18.2984,183.54,183.49,74.2499]
[1722290081422,12.85,183.53,183.49,74.2499]
[1722290081725,51.4,183.6,183.49,68.8001]
[1722290081918,18.2985,183.54,183.49,68.8001]
[1722290082423,12.85,183.53,183.49,74.2499]
[1722290082723,12.85,183.54,183.49,74.2499]
[1722290083622,12.85,183.54,183.51,20.0]
[1722290085294,12.85,183.54,183.52,20.0]
[1722290085522,12.85,183.54,183.5,25.4495]
[1722290085919,12.85,183.52,183.49,20.0]
[1722290086309,15.5523,183.56,183.49,25.4498]
[1722290086511,12.85,183.52,183.49,25.4498]
[1722290086807,12.85,183.52,183.49,20.0]
[1722290087832,12.85,183.53,183.49,20.0]
[1722290088127,18.2986,183.54,183.51,20.0]
[1722290088624,5.4481,183.55,183.51,20.0]
[1722290088831,18.2981,183.55,183.51,20.0]
[1722290090013,12.85,183.53,183.51,20.0]
[1722290090199,5.4485,183.54,183.51,20.0]
[1722290090398,12.85,183.53,183.51,20.0]
[1722290091039,12.85,183.53,183.49,5.4496]
[1722290091417,18.2987,183.53,183.48,53.6251]
[1722290091616,18.2987,183.53,183.5,20.0]
[1722290091938,5.4491,183.52,183.48,33.6251]
[1722290092310,5.4491,183.52,183.49,20.0]
[1722290092532,5.4491,183.52,183.48,20.0]
[1722290092838,18.2993,183.51,183.48,20.0]
[1722290093014,18.2993,183.51,183.46,25.4507]
[1722290093211,18.2993,183.51,183.46,20.0]
[1722290093528,94.1854,183.6,183.44,20.0]
[1722290093529,5.4504,183.47,183.44,20.0]
[1722290093713,12.85,183.48,183.42,60.5078]
[1722290093714,18.3002,183.48,183.42,60.5078]
[1722290093914,5.4504,183.47,183.42,60.5078]
[1722290094807,5.4504,183.47,183.42,55.0561]
[1722290095005,5.4504,183.47,183.43,1.09018805]
[1722290095224,5.4504,183.47,183.42,55.0561]
[1722290095420,5.4508,183.46,183.42,55.0561]
[1722290095736,5.4511,183.45,183.41,19.9563]
[1722290095935,12.85,183.45,183.4,20.0]
[1722290096238,5.4517,183.43,183.39,58.77394209]
[1722290096623,5.452,183.42,183.39,58.77394209]
[1722290097337,12.85,183.44,183.39,58.77394209]
[1722290097738,5.452,183.42,183.39,58.77394209]
[1722290097936,12.85,183.43,183.39,58.77394209]
[1722290098338,5.4519,183.42,183.39,58.77394209]
[1722290098749,5.4525,183.4,183.39,58.77394209]
[1722290099644,12.85,183.4,183.39,58.77394209]
[1722290099832,18.3025,183.4,183.39,58.77394209]
[1722290100328,38.3025,183.4,183.39,42.10734209]
[1722290100845,25.4525,183.4,183.39,36.52514209]
[1722290101047,5.454,183.35,183.33,0.7635317]
[1722290101221,5.4538,183.36,183.33,0.7635317]
[1722290101422,12.85,183.35,183.33,0.7635317]
[1722290101627,18.3043,183.34,183.33,0.7635317]
[1722290101921,5.4543,183.34,183.33,0.7635317]
[1722290102120,12.85,183.34,183.33,0.7635317]
[1722290102338,6.38403999,183.42,183.33,0.7635317]
[1722290102654,12.85,183.38,183.33,0.7635317]
[1722290102952,12.85,183.37,183.33,6.2179317]
[1722290103531,12.85,183.38,183.33,6.2179317]
[1722290103826,12.85,183.39,183.34,5.4542]
[1722290104248,12.85,183.39,183.35,5.454]
[1722290104426,5.4522,183.42,183.35,5.454]
[1722290104622,12.85,183.41,183.35,5.454]
[1722290104827,18.3022,183.41,183.35,5.454]
[1722290105021,12.85,183.42,183.35,28.4758]
[1722290105222,83.62836015,183.51,183.39,18.3028]
[1722290105223,33.1579,183.51,183.39,18.3028]
[1722290105430,5.4499,183.49,183.43,5.4516]
[1722290105725,5.911,183.57,183.46,12.85]
[1722290105923,12.85,183.53,183.46,12.85]
[1722290106124,12.85,183.55,183.49,5.4496]
[1722290106329,12.85,183.55,183.5,20.0]
[1722290106629,12.85,183.55,183.49,6.53940283]
[1722290106829,18.2981,183.55,183.49,1.08980283]
[1722290107034,12.85,183.55,183.5,20.0]
[1722290107340,0.94594831,183.61,183.53,32.85]
[1722290107545,5.4448,183.66,183.56,12.85]
[1722290107749,5.4455,183.64,183.55,52.85]
[1722290107965,12.85,183.62,183.58,13.6175]
[1722290108127,12.85,183.62,183.58,33.6175]
[1722290108326,12.85,183.62,183.55,32.85]
[1722290108327,5.4464,183.61,183.56,20.0]
[1722290108527,12.85,183.58,183.53,20.0]
[1722290108732,18.2972,183.58,183.53,20.0]
[1722290108954,5.4472,183.58,183.53,32.85]
[1722290109349,18.2968,183.6,183.53,32.85]
[1722290109550,18.297,183.59,183.53,32.85]
[1722290109855,5.4473,183.58,183.53,32.85]
[1722290110154,18.297,183.59,183.53,32.85]
[1722290110453,12.85,183.55,183.49,20.0]
[1722290110643,12.85,183.54,183.47,32.85]
[1722290110824,13.6176,183.59,183.46,39.7487]
[1722290111030,5.4497,183.5,183.46,18.9722]
[1722290111339,5.45,183.49,183.45,15.6258]
[1722290112130,5.45,183.49,183.45,35.6258]
[1722290112558,5.4499,183.49,183.45,15.6258]
[1722290112856,5.4499,183.49,183.45,28.4758]
[1722290113365,5.4499,183.49,183.45,15.6258]
[1722290113833,5.4503,183.48,183.45,15.6258]
[1722290115133,18.2997,183.5,183.45,15.6258]
[1722290115336,5.4501,183.49,183.45,15.6258]
[1722290115534,18.3002,183.48,183.45,15.6258]
[1722290115841,5.4505,183.47,183.45,15.6258]
[1722290116032,12.85,183.47,183.41,6.6384]
[1722290116260,5.4508,183.46,183.41,6.6384]
[1722290116437,5.4511,183.45,183.41,6.6384]
[1722290116634,18.3014,183.44,183.39,15.9876]
[1722290117159,5.4513,183.45,183.39,15.9876]
[1722290117451,12.85,183.44,183.39,41.4404]
[1722290117664,5.4516,183.44,183.39,35.9876]
[1722290117835,5.4516,183.44,183.39,15.9876]
[1722290118159,5.4517,183.43,183.39,15.9876]
[1722290118955,5.452,183.42,183.39,15.9876]
[1722290119159,78.6468,183.51,183.39,15.9876]
[1722290119160,5.4513,183.44,183.39,15.9876]
[1722290119363,5.4517,183.43,183.39,15.9876]
[1722290119735,5.4517,183.43,183.36,26.2303]
[1722290119736,5.4523,183.41,183.36,11.6838]
[1722290120037,12.85,183.42,183.36,11.6838]
[1722290120237,5.4513,183.45,183.37,20.0]
[1722290120566,12.85,183.44,183.39,20.0]
[1722290120736,18.3017,183.43,183.38,5.4528]
[1722290121065,18.302,183.42,183.36,45.3181]
[1722290121254,12.85,183.42,183.37,20.0]
[1722290121561,12.85,183.42,183.36,19.8644]
[1722290121764,12.85,183.41,183.36,6.2303]
[1722290122164,18.3023,183.41,183.36,31.684]
[1722290122541,13.626,183.48,183.38,5.4529]
[1722290122542,5.4516,183.44,183.38,5.4529]
[1722290122762,20.0,183.43,183.36,39.0803]
[1722290122945,20.0,183.43,183.4,13.6308]
[1722290123141,20.0,183.43,183.37,18.3031]
[1722290123442,18.3023,183.41,183.36,19.8639]
[1722290124147,18.3023,183.41,183.36,25.3175]
[1722290124348,18.3023,183.41,183.37,5.4533]
[1722290124349,12.85,183.41,183.37,5.4533]
[1722290124559,18.302,183.42,183.36,19.8639]
[1722290124758,18.302,183.42,183.36,25.3173]
[1722290125439,18.3023,183.41,183.36,25.3173]
[1722290126067,18.3023,183.41,183.36,19.8639]
[1722290126245,18.3023,183.41,183.36,25.3175]
[1722290126769,5.911,183.49,183.38,13.6321]
[1722290126963,12.85,183.44,183.38,13.6321]
[1722290127263,20.0,183.43,183.39,5.4528]
[1722290127561,12.85,183.42,183.38,19.0851]
[1722290127857,18.3019,183.42,183.38,13.6321]
[1722290128237,18.3019,183.42,183.36,11.684]
[1722290128436,12.85,183.42,183.36,6.2303]
[1722290128647,5.4523,183.41,183.36,11.6839]
[1722290128847,18.3022,183.42,183.36,11.6837]
[1722290129066,18.3022,183.42,183.36,31.6837]
[1722290129368,5.4502,183.48,183.41,5.4521]
[1722290129543,5.4506,183.47,183.41,5.4521]
[1722290129742,12.85,183.45,183.4,19.0835]
[1722290129967,12.85,183.44,183.4,13.6312]
[1722290130264,5.4511,183.45,183.4,13.6312]
[1722290130478,0.94661043,183.52,183.38,20.0]
[1722290130641,12.85,183.44,183.4,20.0]
[1722290130838,12.85,183.44,183.39,5.4526]
[1722290131349,0.94661043,183.52,183.42,13.6293]
[1722290131560,12.85,183.48,183.42,53.6293]
[1722290131737,12.85,183.47,183.42,53.6293]
[1722290133462,5.4497,183.5,183.42,53.6293]
[1722290133642,12.85,183.48,183.42,53.6293]
[1722290134244,5.4499,183.49,183.42,53.6293]
[1722290134467,12.85,183.47,183.42,13.6293]
[1722290134661,12.85,183.47,183.42,33.6293]
[1722290135065,13.6212,183.54,183.42,39.0812]
[1722290135246,12.85,183.47,183.42,39.0812]
[1722290135445,18.3006,183.47,183.42,13.6293]
[1722290135646,18.3006,183.47,183.42,33.6293]
[1722290135851,18.3006,183.47,183.42,13.6293]
[1722290136174,5.4499,183.49,183.43,26.268]
[1722290136350,18.3002,183.48,183.43,11.7196]
[1722290136547,12.85,183.47,183.43,6.268]
[1722290137071,18.3004,183.47,183.43,6.268]
[1722290137671,5.4504,183.47,183.43,6.268]
[1722290137857,5.4504,183.47,183.43,26.268]
[1722290138360,18.3004,183.47,183.43,26.268]
[1722290138569,12.85,183.45,183.43,6.268]
[1722290139074,12.85,183.46,183.43,6.268]
[1722290139449,18.3007,183.46,183.43,6.268]
[1722290139683,18.3007,183.46,183.42,13.6293]
[1722290139973,18.3007,183.46,183.4,35.9521]
[1722290140279,12.85,183.45,183.4,35.9521]
[1722290140570,12.85,183.45,183.4,21.4046]
[1722290140783,12.85,183.45,183.4,41.4046]
[1722290140962,12.85,183.45,183.4,21.4046]
[1722290141144,12.85,183.45,183.4,41.4046]
[1722290141344,12.85,183.45,183.41,20.0]
[1722290141565,12.85,183.44,183.4,15.9521]
[1722290141767,12.85,183.43,183.4,15.9521]
[1722290142148,12.85,183.42,183.38,13.6324]
[1722290142345,12.85,183.41,183.38,13.6324]
[1722290142552,12.85,183.41,183.36,15.6344]
[1722290142778,12.85,183.4,183.37,5.4533]
[1722290143278,12.85,183.41,183.37,5.4533]
[1722290144756,12.85,183.4,183.37,5.4533]
[1722290145769,12.85,183.4,183.38,5.4529]
[1722290146170,12.85,183.4,183.37,13.6334]
[1722290146678,12.85,183.4,183.37,19.0868]
[1722290146871,12.85,183.4,183.38,5.4531]
[1722290147067,12.85,183.4,183.37,19.0868]
[1722290147369,25.4531,183.39,183.34,5.4543]
[1722290147574,12.85,183.37,183.34,5.4543]
[1722290150276,12.85,183.37,183.33,0.7635317]
[1722290150581,5.454,183.36,183.33,0.7635317]
[1722290150967,12.85,183.34,183.33,0.7635317]
[1722290151162,10.76228341,183.34,183.33,0.7635317]
[1722290152292,13.6298,183.43,183.33,0.7635317]
[1722290152483,12.85,183.37,183.33,6.2181317]
[1722290154268,5.4531,183.38,183.33,6.2181317]